[Event "FIDE World School-ch G-13 2025"]
[Site "Vrnjacka Banja"]
[Date "2025.03.24"]
[Round "5.1"]
[White "Amanzhol, Khanzada"]
[Black "Abylaykyzy, Bibisara"]
[Result "1-0"]
[Annotator "TA"]
[ECO "B32"]
[WhiteElo "1908"]
[BlackElo "1651"]
[PlyCount "79"]
[EventDate "2025.03.19"]
[EventType "swiss"]
[EventCountry "SRB"]
[SourceTitle "playchess.com"]
[Source "ChessBase"]
[SourceQuality "1"]
[TimeControl "5400+30"]

{[%evp 9,79,-2,20,17,79,20,42,27,37,29,42,6,44,12,21,0,22,-51,-43,-73,-30,-33,-45,-23,-5,-61,1,-8,-2,-7,10,0,0,0,0,0,9,-6,-14,-29,0,-40,-13,-29,163,123,147,152,214,200,243,193,277,286,279,277,265,255,255,227,454,360,651,620,634,568,665,656,936,903,976,990]} 1. e4 {[%emt 0:03:33]} c5 {[%emt 0:00:15]} 2. Nf3 {[%emt 0:00:07]} Nc6 {[%emt 0:00:49]} 3. d4 {[%emt 0:00:43]} cxd4 {[%emt 0:00:08]} 4. Nxd4 {[%emt 0:00:02]} Qb6 {[%emt 0:00:31]} 5. Nxc6 {[%emt 0:02:43]} bxc6 {[%emt 0:02:59]} 6. Nc3 {[%emt 0:04:24] B32: Sicilian: Löwenthal and Kalashnikov Variations.} g6 {[%emt 0:01:35]} (6... Nf6 $11 {remains equal.}) 7. Bd3 {[%emt 0:02:13]} (7. Be3 $16 Qxb2 8. Bd4) 7... Bg7 $11 {[%emt 0:00:49]} 8. O-O {[%emt 0:00:34] White is slightly better.} d6 {[%emt 0:00:27]} 9. Qe2 $146 {[%emt 0:04:12]} ({Predecessor:} 9. Kh1 Nf6 10. Qe2 O-O 11. Rb1 Nd7 12. Be3 Qa5 13. Qd2 Ne5 14. b4 Qd8 15. Bh6 Bxh6 16. Qxh6 {0-1 Tichatschke,W (1947)-Ceschia,I (2205) WchT Seniors 65 2025 (1.16)}) 9... Nf6 {[%emt 0:00:32]} 10. h3 {[%emt 0:05:00]} O-O {[%emt 0:00:16]} 11. Rb1 {[%emt 0:01:30]} Qc7 {[%emt 0:09:25]} 12. Be3 {[%emt 0:08:24]} e5 {[%emt 0:07:59]} 13. Qd2 {[%emt 0:06:18]} (13. Bc4 $11) 13... d5 $15 {[%emt 0:02:01] [#] And now ...d4 would win.} 14. exd5 {[%emt 0:05:14]} cxd5 {[%emt 0:00:12]} 15. Nb5 {[%emt 0:03:12]} Qe7 {[%emt 0:01:17]} 16. Qa5 {[%emt 0:01:17][%cal Ob5c7]} Bb7 {[%emt 0:09:34]} 17. Rfe1 {[%emt 0:05:40]} (17. c3 $11) 17... e4 {[%emt 0:10:52] Black has a king side majority} (17... Rfd8 $15) 18. Bf1 {[%emt 0:02:11]} Rfd8 {[%emt 0:07:18]} 19. Rbd1 {[%emt 0:03:00][%cal Oc2c4]} Ne8 {[%emt 0:03:56][%cal Bf6e8,Be8d6,Bd6c4][%mdl 32]} 20. Bd4 {[%emt 0:09:27]} (20. Nxa7 d4 (20... Bxb2 21. c3 $11) 21. Bg5 Bf6 22. Bxf6 Qxf6 $15 (22... Nxf6 23. c4 $17)) 20... Bxd4 {[%emt 0:03:38]} 21. Nxd4 {[%emt 0:00:52]} Nd6 {[%emt 0:02:53]} 22. Ba6 {[%emt 0:05:14]} Rac8 {[%emt 0:07:55]} 23. c3 {[%emt 0:04:02]} Bxa6 {[%emt 0:08:14]} 24. Qxa6 {[%emt 0:00:06]} Nc4 {[%emt 0:00:32]} 25. Nc6 {[%emt 0:04:57]} Qe6 {[%emt 0:01:32]} (25... Qf6 {is more complex.} 26. Rxd5 Nxb2 27. Qb7 Nd3) 26. Rxd5 $1 {[%emt 0:00:45] Threatens to win with Rc5.} Re8 $2 {[%emt 0:06:05]} ({Of course not} 26... Rxd5 $6 27. Ne7+ (27. Qxc4 $2 {is the wrong capture.} Rxc6 28. Qa4 Ra6 $19) 27... Qxe7 28. Qxc8+ Qd8 29. Qxc4 $16) (26... Nxb2 $11 27. Rxd8+ Rxd8) 27. Qxc4 {[%emt 0:01:24]} Rxc6 {[%emt 0:00:08]} 28. Qd4 {[%emt 0:00:14]} Ra6 {[%emt 0:01:30] Black is weak on the dark squares} (28... Rb6 $16) 29. a4 $18 {[%emt 0:01:29][%cal Ba2a4,Ba4a5][%mdl 32]} Qc6 {[%emt 0:01:41]} 30. a5 {[%emt 0:00:51]} Qc7 {[%emt 0:02:08]} (30... Qf6 $142 31. b4 (31. Rxe4 Rxe4 32. Qxe4 Re6 $18) 31... Qxd4 32. Rxd4 f5) 31. Rxe4 {[%emt 0:01:53]} Rxe4 {[%emt 0:00:40][%cal Re4e1] [#]} 32. Rd8+ $1 {[%emt 0:00:17]} (32. Qxe4 Rxa5 33. g3 Rxd5 34. Qxd5 h5 $16) 32... Qxd8 {[%emt 0:00:28]} 33. Qxd8+ {[%emt 0:00:03][%mdl 4096] Endgame KQ-KRR} Kg7 {[%emt 0:00:07]} 34. b4 {[%emt 0:00:23][%cal Bb2b4,Bb4b5,Bb5b6,Bb6b7][%mdl 32]} Ree6 $2 {[%emt 0:01:00]} (34... Rf6 {keeps fighting.} 35. Qd3 Ref4) 35. b5 {[%emt 0:01:02]} Red6 {[%emt 0:01:31]} (35... Rad6 36. Qc7 Rd1+ 37. Kh2 Rb1) 36. Qc7 {[%emt 0:00:06] White is clearly winning.} Rd1+ {[%emt 0:00:20]} 37. Kh2 {[%emt 0:00:05]} Rf6 {[%emt 0:00:22]} 38. Qxa7 {[%emt 0:16:03]} Re6 {[%emt 0:00:31]} 39. b6 {[%emt 0:00:00]} Ree1 {[%emt 0:00:39]} 40. b7 {[%emt 0:00:00] Weighted Error Value: White=0.16 (very precise) /Black=0.62  Loses game:     	---       	Black=1      Mistake:       	White=3     	Black=6      Inaccurate:     	White=3     	Black=4      OK:         	White=7     	Black=9      Best:        	White=2     	Black=2      Strong:       	White=2     	---} 1-0

[Event "FIDE World School-ch G-13 2025"]
[Site "Vrnjacka Banja"]
[Date "2025.03.24"]
[Round "5.2"]
[White "Omirserik, Alima"]
[Black "Begmuratova, Sarvinoz"]
[Result "1/2-1/2"]
[Annotator "NA RC"]
[ECO "B10"]
[WhiteElo "1814"]
[BlackElo "1808"]
[PlyCount "79"]
[EventDate "2025.03.19"]
[EventType "swiss"]
[EventCountry "SRB"]
[SourceTitle "playchess.com"]
[Source "ChessBase"]
[SourceQuality "1"]
[TimeControl "5400+30"]

1. e4 {[%emt 0:00:02]} c6 {[%emt 0:00:04]} 2. Nf3 {[%emt 0:00:04]} d5 {[%emt 0:00:05]} 3. exd5 {[%emt 0:00:04]} cxd5 {[%emt 0:00:04]} 4. Ne5 {[%emt 0:00:04]} Nc6 {[%emt 0:00:06]} 5. d4 {[%emt 0:00:10]} e6 {[%emt 0:00:05]} 6. Bb5 {[%emt 0:01:14]} Bd7 {[%emt 0:00:09]} 7. Nxd7 {[%emt 0:00:07]} Qxd7 {[%emt 0:00:09]} 8. c3 {[%emt 0:00:27]} a6 {[%emt 0:01:50]} 9. Bd3 {[%emt 0:01:16]} Nf6 {[%emt 0:02:15]} 10. Nd2 {[%emt 0:02:10]} Bd6 {[%emt 0:00:57]} 11. Nf3 {[%emt 0:01:07]} h6 {[%emt 0:03:49]} 12. O-O {[%emt 0:01:21]} O-O {[%emt 0:01:04]} 13. Re1 {[%emt 0:00:37]} Qc7 {[%emt 0:01:36]} 14. h3 {[%emt 0:03:32]} Rfe8 {[%emt 0:01:28]} 15. Be3 {[%emt 0:05:24]} Rac8 {[%emt 0:04:54]} 16. Rc1 {[%emt 0:02:33]} e5 {[%emt 0:04:45]} 17. dxe5 {[%emt 0:00:21]} Nxe5 {[%emt 0:00:07]} 18. Nxe5 {[%emt 0:04:38]} Bxe5 {[%emt 0:02:42]} 19. Be2 {[%emt 0:05:06]} Qa5 {[%emt 0:05:14]} 20. Qb3 {[%emt 0:13:52]} b5 {[%emt 0:04:21]} 21. Bf3 {[%emt 0:01:28]} Rc4 {[%emt 0:02:14]} 22. Rcd1 {[%emt 0:04:20]} Bb8 {[%emt 0:09:49]} 23. Bxd5 {[%emt 0:06:44]} Nxd5 {[%emt 0:00:11]} 24. Rxd5 {[%emt 0:00:07]} Qc7 {[%emt 0:00:10]} 25. g3 {[%emt 0:00:35]} Rce4 {[%emt 0:03:12]} 26. Rd3 {[%emt 0:10:08]} Ba7 {[%emt 0:02:52]} 27. Kg2 {[%emt 0:07:57]} Qc6 {[%emt 0:04:17]} 28. Kh2 {[%emt 0:06:14]} Bxe3 {[%emt 0:10:28]} 29. fxe3 {[%emt 0:01:22]} Qb6 {[%emt 0:01:24]} 30. Qc2 {[%emt 0:02:15]} Rxe3 {[%emt 0:01:35]} 31. Rexe3 {[%emt 0:01:26]} Rxe3 {[%emt 0:00:06]} 32. Qf2 {[%emt 0:00:36]} Re6 {[%emt 0:00:21]} 33. Qxb6 {[%emt 0:01:09]} Rxb6 {[%emt 0:00:05]} 34. Kg2 {[%emt 0:00:20]} Re6 {[%emt 0:04:57]} 35. Kf2 {[%emt 0:00:29]} f5 {[%emt 0:04:15]} 36. Rd5 {[%emt 0:01:14]} g6 {[%emt 0:00:24]} 37. Rd7 {[%emt 0:00:24]} Kf8 {[%emt 0:00:39]} 38. Ra7 {[%emt 0:02:24]} Ke8 {[%emt 0:02:22]} 39. Kf3 {[%emt 0:03:21]} Kf8 {[%emt 0:04:31]} 40. Kf2 {[%emt 0:01:10]} 1/2-1/2

[Event "FIDE World School-ch G-13 2025"]
[Site "Vrnjacka Banja"]
[Date "2025.03.24"]
[Round "5.3"]
[White "Leca Andrei, Anastasia"]
[Black "Gaer, Sofiya Ig"]
[Result "0-1"]
[Annotator "NA RC"]
[ECO "C01"]
[WhiteElo "1805"]
[BlackElo "1733"]
[PlyCount "130"]
[EventDate "2025.03.19"]
[EventType "swiss"]
[EventCountry "SRB"]
[SourceTitle "playchess.com"]
[Source "ChessBase"]
[SourceQuality "1"]
[TimeControl "5400+30"]

1. e4 {[%emt 0:00:07]} e6 {[%emt 0:00:10]} 2. d4 {[%emt 0:00:04]} d5 {[%emt 0:00:05]} 3. exd5 {[%emt 0:00:06]} exd5 {[%emt 0:00:05]} 4. c4 {[%emt 0:00:03]} c6 {[%emt 0:00:15]} 5. Nc3 {[%emt 0:01:11]} Nf6 {[%emt 0:00:30]} 6. Nf3 {[%emt 0:01:37]} Bg4 {[%emt 0:01:17]} 7. Be2 {[%emt 0:03:13]} dxc4 {[%emt 0:02:35]} 8. Ne5 {[%emt 0:03:02]} Bxe2 {[%emt 0:02:13]} 9. Qxe2 {[%emt 0:01:05]} Be7 {[%emt 0:01:17]} 10. Qxc4 {[%emt 0:01:47]} O-O {[%emt 0:01:04]} 11. O-O {[%emt 0:01:57]} Nbd7 {[%emt 0:01:21]} 12. f4 {[%emt 0:02:15]} Nb6 {[%emt 0:06:10]} 13. Qd3 {[%emt 0:02:27]} Nbd5 {[%emt 0:04:03]} 14. Be3 {[%emt 0:12:42]} Qb6 {[%emt 0:05:07]} 15. Nxd5 {[%emt 0:10:45]} cxd5 {[%emt 0:01:10]} 16. Qe2 {[%emt 0:04:19]} Rfe8 {[%emt 0:05:39]} 17. g4 {[%emt 0:09:51]} Ne4 {[%emt 0:08:59]} 18. g5 {[%emt 0:05:12]} f6 {[%emt 0:05:27]} 19. gxf6 {[%emt 0:00:08]} Bxf6 {[%emt 0:00:10]} 20. Kh1 {[%emt 0:03:37]} Rac8 {[%emt 0:07:29]} 21. Rac1 {[%emt 0:04:07]} Qe6 {[%emt 0:06:54]} 22. Qg2 {[%emt 0:13:21]} Qf5 {[%emt 0:09:41]} 23. Qg4 {[%emt 0:02:48]} Nd6 {[%emt 0:13:24]} 24. Qf3 {[%emt 0:04:21]} Qe4 {[%emt 0:02:24]} 25. Qxe4 {[%emt 0:12:55]} Nxe4 {[%emt 0:00:15]} 26. Kg2 {[%emt 0:00:00]} Nd6 {[%emt 0:00:47]} 27. b3 {[%emt 0:00:00]} Nf5 {[%emt 0:01:00]} 28. Kf3 {[%emt 0:00:00]} Be7 {[%emt 0:01:00]} 29. Rxc8 {[%emt 0:00:00]} Rxc8 {[%emt 0:00:08]} 30. Rc1 {[%emt 0:00:00]} Rxc1 {[%emt 0:03:36]} 31. Bxc1 {[%emt 0:00:00]} Nxd4+ {[%emt 0:00:13]} 32. Ke3 {[%emt 0:00:22]} Nf5+ {[%emt 0:01:22]} 33. Kd3 {[%emt 0:00:22]} Kf8 {[%emt 0:01:13]} 34. Be3 {[%emt 0:00:50]} Nxe3 {[%emt 0:01:59]} 35. Kxe3 {[%emt 0:00:01]} Bc5+ {[%emt 0:00:10]} 36. Kf3 {[%emt 0:00:48]} Ke7 {[%emt 0:00:18]} 37. Nd3 {[%emt 0:00:12]} Bg1 {[%emt 0:01:45]} 38. h3 {[%emt 0:00:32]} Ke6 {[%emt 0:00:46]} 39. Kg4 {[%emt 0:00:37]} Bd4 {[%emt 0:02:25]} 40. h4 {[%emt 0:01:02]} a5 {[%emt 0:01:28]} 41. h5 {[%emt 0:01:42]} Kf6 {[%emt 0:02:04]} 42. Ne1 {[%emt 0:00:39]} Bc3 {[%emt 0:01:30]} 43. Nd3 {[%emt 0:00:15]} d4 {[%emt 0:01:12]} 44. Nc1 {[%emt 0:00:43]} Ke6 {[%emt 0:00:22]} 45. Nd3 {[%emt 0:00:17]} Kd5 {[%emt 0:00:21]} 46. Kf3 {[%emt 0:00:03]} b6 {[%emt 0:01:16]} 47. Nc1 {[%emt 0:01:29]} Bd2 {[%emt 0:00:33]} 48. Nd3 {[%emt 0:00:11]} b5 {[%emt 0:00:22]} 49. Nb2 {[%emt 0:00:22]} a4 {[%emt 0:00:41]} 50. Nd3 {[%emt 0:01:23]} axb3 {[%emt 0:00:30]} 51. axb3 {[%emt 0:00:01]} Ba5 {[%emt 0:00:21]} 52. f5 {[%emt 0:00:28]} Bc7 {[%emt 0:00:26]} 53. Nf2 {[%emt 0:00:56]} Ke5 {[%emt 0:00:39]} 54. Kg4 {[%emt 0:00:28]} Bd8 {[%emt 0:00:33]} 55. b4 {[%emt 0:00:43]} Be7 {[%emt 0:00:31]} 56. Nd3+ {[%emt 0:00:27]} Ke4 {[%emt 0:00:12]} 57. Nc5+ {[%emt 0:00:15]} Bxc5 {[%emt 0:00:54]} 58. bxc5 {[%emt 0:00:01]} d3 {[%emt 0:00:03]} 59. h6 {[%emt 0:00:32]} d2 {[%emt 0:00:05]} 60. hxg7 {[%emt 0:00:19]} d1=Q+ {[%emt 0:02:01]} 61. Kg5 {[%emt 0:00:15]} Qd8+ {[%emt 0:00:00]} 62. f6 {[%emt 0:00:22]} Ke5 {[%emt 0:00:00]} 63. Kh6 {[%emt 0:00:10]} Kxf6 {[%emt 0:00:00]} 64. c6 {[%emt 0:00:18]} Qe8 {[%emt 0:00:00]} 65. Kxh7 {[%emt 0:00:10]} Qg6+ {[%emt 0:00:00]} 0-1

[Event "FIDE World School-ch G-13 2025"]
[Site "Vrnjacka Banja"]
[Date "2025.03.24"]
[Round "5.4"]
[White "Smirnova, Viktoria A"]
[Black "Enkhzaya, Zagas-Erdene"]
[Result "1-0"]
[Annotator "NA RC"]
[ECO "E15"]
[WhiteElo "1671"]
[BlackElo "1801"]
[PlyCount "75"]
[EventDate "2025.03.19"]
[EventType "swiss"]
[EventCountry "SRB"]
[SourceTitle "playchess.com"]
[Source "ChessBase"]
[SourceQuality "1"]
[TimeControl "5400+30"]

1. d4 {[%emt 0:00:03]} Nf6 {[%emt 0:00:01]} 2. c4 {[%emt 0:00:11]} e6 {[%emt 0:00:04]} 3. Nf3 {[%emt 0:00:24]} b6 {[%emt 0:06:00]} 4. g3 {[%emt 0:03:48]} Ba6 {[%emt 0:00:47]} 5. Qc2 {[%emt 0:04:29]} Bb4+ {[%emt 0:00:33]} 6. Bd2 {[%emt 0:01:56]} Be7 {[%emt 0:00:03]} 7. Bg2 {[%emt 0:01:59]} c6 {[%emt 0:00:04]} 8. O-O {[%emt 0:04:03]} d5 {[%emt 0:01:24]} 9. Ne5 {[%emt 0:06:06]} O-O {[%emt 0:01:14]} 10. e3 {[%emt 0:06:30]} Nfd7 {[%emt 0:00:21]} 11. Nxd7 {[%emt 0:01:44]} Nxd7 {[%emt 0:02:38]} 12. b3 {[%emt 0:06:44]} Bf6 {[%emt 0:01:27]} 13. Rd1 {[%emt 0:05:22]} Rc8 {[%emt 0:03:54]} 14. cxd5 {[%emt 0:06:31]} cxd5 {[%emt 0:00:07]} 15. Nc3 {[%emt 0:02:35]} b5 {[%emt 0:04:43]} 16. a3 {[%emt 0:06:33]} Qb6 {[%emt 0:07:40]} 17. Qb2 {[%emt 0:04:47]} Bb7 {[%emt 0:00:48]} 18. Rac1 {[%emt 0:02:34]} a5 {[%emt 0:05:45]} 19. Na2 {[%emt 0:03:25]} Qa7 {[%emt 0:31:08]} 20. Rxc8 {[%emt 0:03:00]} Rxc8 {[%emt 0:00:08]} 21. Rc1 {[%emt 0:01:42]} Bc6 {[%emt 0:03:45]} 22. Rc2 {[%emt 0:06:11]} Nb6 {[%emt 0:01:39]} 23. Qc1 {[%emt 0:01:54]} Bd7 {[%emt 0:01:04]} 24. Rxc8+ {[%emt 0:01:43]} Bxc8 {[%emt 0:00:04]} 25. Qc5 {[%emt 0:02:07]} Bd7 {[%emt 0:04:57]} 26. Bf1 {[%emt 0:01:52]} Be8 {[%emt 0:00:38]} 27. Nc3 {[%emt 0:08:33]} b4 {[%emt 0:04:12]} 28. axb4 {[%emt 0:01:42]} axb4 {[%emt 0:00:28]} 29. Nb5 {[%emt 0:01:23]} Qb8 {[%emt 0:09:10]} 30. Bxb4 {[%emt 0:01:01]} Nd7 {[%emt 0:00:01]} 31. Qd6 {[%emt 0:01:41]} Qb7 {[%emt 0:00:31]} 32. Nc7 {[%emt 0:00:41]} Qc8 {[%emt 0:00:19]} 33. Nxe8 {[%emt 0:00:23]} Qxe8 {[%emt 0:00:04]} 34. Bb5 {[%emt 0:00:28]} Qf8 {[%emt 0:01:34]} 35. Bxd7 {[%emt 0:00:23]} Qa8 {[%emt 0:00:06]} 36. Ba4 {[%emt 0:00:29]} h6 {[%emt 0:00:03]} 37. Qc6 {[%emt 0:00:28]} Qa7 {[%emt 0:00:03]} 38. Bc5 {[%emt 0:00:23]} 1-0

[Event "FIDE World School-ch G-13 2025"]
[Site "Vrnjacka Banja"]
[Date "2025.03.24"]
[Round "5.5"]
[White "Akuratiya, A G Hansadie Aradhya"]
[Black "Tereshchenko, Eliza"]
[Result "0-1"]
[Annotator "NA RC"]
[ECO "B21"]
[WhiteElo "1629"]
[BlackElo "1751"]
[PlyCount "120"]
[EventDate "2025.03.19"]
[EventType "swiss"]
[EventCountry "SRB"]
[SourceTitle "playchess.com"]
[Source "ChessBase"]
[SourceQuality "1"]
[TimeControl "5400+30"]

1. e4 {[%emt 0:00:05]} c5 {[%emt 0:00:15]} 2. d4 {[%emt 0:00:07]} cxd4 {[%emt 0:00:09]} 3. c3 {[%emt 1:31:48]} dxc3 {[%emt 0:00:19]} 4. Nxc3 {[%emt 0:00:00]} Nc6 {[%emt 0:00:06]} 5. Bc4 {[%emt 0:00:00]} e6 {[%emt 0:00:56]} 6. Nf3 {[%emt 0:00:00]} a6 {[%emt 0:00:16]} 7. O-O {[%emt 0:00:00]} Nge7 {[%emt 0:00:23]} 8. e5 {[%emt 0:00:00]} Ng6 {[%emt 0:06:57]} 9. Qe2 {[%emt 0:00:00]} Be7 {[%emt 0:05:21]} 10. a3 {[%emt 0:00:00]} O-O {[%emt 0:01:52]} 11. b4 {[%emt 0:00:00]} Qc7 {[%emt 0:06:15]} 12. Re1 {[%emt 0:00:00]} Ncxe5 {[%emt 0:25:41]} 13. Nxe5 {[%emt 0:00:00]} Nxe5 {[%emt 0:10:02]} 14. Qxe5 {[%emt 0:00:00]} Qxc4 {[%emt 0:09:19]} 15. Bb2 {[%emt 0:00:00]} Bf6 {[%emt 0:01:59]} 16. Qg3 {[%emt 0:00:00]} d5 {[%emt 0:09:23]} 17. Rac1 {[%emt 0:00:00]} Qh4 {[%emt 0:03:19]} 18. Qc7 {[%emt 0:00:00]} Bg5 {[%emt 0:09:17]} 19. g3 {[%emt 0:00:00]} Qc4 {[%emt 0:01:35]} 20. Qxc4 {[%emt 0:00:00]} dxc4 {[%emt 0:00:01]} 21. f4 {[%emt 0:00:00]} Bf6 {[%emt 0:00:10]} 22. Red1 {[%emt 0:00:00]} b5 {[%emt 0:01:51]} 23. Rc2 {[%emt 0:00:00]} Bb7 {[%emt 0:00:37]} 24. Rd7 {[%emt 0:00:00]} Rab8 {[%emt 0:02:22]} 25. Ne2 {[%emt 0:01:18]} Be4 {[%emt 0:01:15]} 26. Rcd2 {[%emt 0:00:14]} Bxb2 {[%emt 0:01:13]} 27. Rxb2 {[%emt 0:00:08]} Rfd8 {[%emt 0:00:31]} 28. Rbd2 {[%emt 0:00:30]} Bd3 {[%emt 0:01:15]} 29. Rxd8+ {[%emt 0:00:12]} Rxd8 {[%emt 0:00:01]} 30. Nc3 {[%emt 0:00:38]} Rc8 {[%emt 0:00:33]} 31. Kf2 {[%emt 0:00:30]} f6 {[%emt 0:00:44]} 32. Ke3 {[%emt 0:05:07]} Kf7 {[%emt 0:00:26]} 33. Kd4 {[%emt 0:01:33]} Ke7 {[%emt 0:00:50]} 34. Ra2 {[%emt 0:02:32]} Bg6 {[%emt 0:01:33]} 35. a4 {[%emt 0:00:26]} Be8 {[%emt 0:00:40]} 36. axb5 {[%emt 0:00:23]} Bxb5 {[%emt 0:00:25]} 37. Nxb5 {[%emt 0:02:12]} axb5 {[%emt 0:00:01]} 38. Kc3 {[%emt 0:00:30]} Rd8 {[%emt 0:00:54]} 39. Ra7+ {[%emt 0:00:25]} Rd7 {[%emt 0:00:03]} 40. Ra5 {[%emt 0:00:15]} Rd5 {[%emt 0:00:22]} 41. Ra7+ {[%emt 0:01:06]} Kf8 {[%emt 0:00:22]} 42. Ra8+ {[%emt 0:00:15]} Kf7 {[%emt 0:00:04]} 43. Ra7+ {[%emt 0:00:10]} Kg6 {[%emt 0:00:11]} 44. Rb7 {[%emt 0:01:08]} e5 {[%emt 0:00:23]} 45. fxe5 {[%emt 0:00:43]} fxe5 {[%emt 0:00:05]} 46. h4 {[%emt 0:00:39]} h5 {[%emt 0:00:47]} 47. Kc2 {[%emt 0:00:32]} e4 {[%emt 0:00:17]} 48. Re7 {[%emt 0:00:07]} Kf5 {[%emt 0:02:33]} 49. Rxg7 {[%emt 0:00:22]} e3 {[%emt 0:00:32]} 50. Rf7+ {[%emt 0:00:57]} Kg4 {[%emt 0:00:23]} 51. Re7 {[%emt 0:00:34]} Kf3 {[%emt 0:00:16]} 52. Rf7+ {[%emt 0:00:29]} Kxg3 {[%emt 0:00:05]} 53. Re7 {[%emt 0:00:09]} Kf4 {[%emt 0:00:40]} 54. Rf7+ {[%emt 0:00:09]} Rf5 {[%emt 0:00:40]} 55. Re7 {[%emt 0:00:17]} Re5 {[%emt 0:00:02]} 56. Rf7+ {[%emt 0:00:11]} Kg3 {[%emt 0:00:10]} 57. Rg7+ {[%emt 0:00:15]} Kxh4 {[%emt 0:00:44]} 58. Rg1 {[%emt 0:00:14]} e2 {[%emt 0:00:03]} 59. Re1 {[%emt 0:00:07]} Kg3 {[%emt 0:00:04]} 60. Kd2 {[%emt 0:00:11]} Kf2 {[%emt 0:00:08]} 0-1

[Event "FIDE World School-ch G-13 2025"]
[Site "Vrnjacka Banja"]
[Date "2025.03.24"]
[Round "5.6"]
[White "Mamakova, Aknur"]
[Black "Bratu, Agnes-Andreea"]
[Result "1-0"]
[Annotator "NA RC"]
[ECO "A85"]
[WhiteElo "1797"]
[BlackElo "1586"]
[PlyCount "133"]
[EventDate "2025.03.19"]
[EventType "swiss"]
[EventCountry "SRB"]
[SourceTitle "playchess.com"]
[Source "ChessBase"]
[SourceQuality "1"]
[TimeControl "5400+30"]

1. d4 {[%emt 0:01:05]} f5 {[%emt 0:00:13]} 2. Nf3 {[%emt 0:00:37]} Nf6 {[%emt 0:00:52]} 3. c4 {[%emt 0:00:57]} e6 {[%emt 0:00:08]} 4. Nc3 {[%emt 0:00:58]} Bb4 {[%emt 0:22:26]} 5. e3 {[%emt 0:03:28]} d5 {[%emt 0:03:15]} 6. Bd2 {[%emt 0:04:21]} c6 {[%emt 0:00:46]} 7. Be2 {[%emt 0:02:30]} Ne4 {[%emt 0:01:09]} 8. Nxe4 {[%emt 0:01:48]} fxe4 {[%emt 0:01:13]} 9. Bxb4 {[%emt 0:00:30]} exf3 {[%emt 0:00:10]} 10. Bxf3 {[%emt 0:00:58]} Nd7 {[%emt 0:00:55]} 11. Bh5+ {[%emt 0:01:57]} g6 {[%emt 0:01:57]} 12. Bf3 {[%emt 0:05:25]} Nf6 {[%emt 0:03:21]} 13. h4 {[%emt 0:02:01]} Qb6 {[%emt 0:03:00]} 14. Bc3 {[%emt 0:03:43]} h5 {[%emt 0:01:50]} 15. Qc2 {[%emt 0:03:07]} Rg8 {[%emt 0:04:33]} 16. Rg1 {[%emt 0:05:41]} Bd7 {[%emt 0:12:25]} 17. a3 {[%emt 0:04:03]} Qc7 {[%emt 0:01:56]} 18. O-O-O {[%emt 0:05:02]} O-O-O {[%emt 0:10:55]} 19. c5 {[%emt 0:02:43]} Rdf8 {[%emt 0:04:14]} 20. Qa4 {[%emt 0:04:30]} b6 {[%emt 0:06:07]} 21. cxb6 {[%emt 0:01:15]} axb6 {[%emt 0:01:19]} 22. Bb4 {[%emt 0:06:54]} Re8 {[%emt 0:03:11]} 23. Qa8+ {[%emt 0:01:13]} Qb8 {[%emt 0:00:16]} 24. Qxb8+ {[%emt 0:00:20]} Kxb8 {[%emt 0:00:06]} 25. Bd6+ {[%emt 0:00:28]} Kb7 {[%emt 0:00:19]} 26. Kd2 {[%emt 0:06:21]} Rc8 {[%emt 0:01:57]} 27. Rc1 {[%emt 0:01:00]} Ne8 {[%emt 0:00:31]} 28. Bb4 {[%emt 0:00:44]} Nc7 {[%emt 0:00:58]} 29. Bd6 {[%emt 0:03:41]} Nb5 {[%emt 0:01:38]} 30. Be5 {[%emt 0:01:55]} c5 {[%emt 0:01:22]} 31. dxc5 {[%emt 0:02:25]} bxc5 {[%emt 0:00:09]} 32. g4 {[%emt 0:00:48]} c4 {[%emt 0:01:01]} 33. gxh5 {[%emt 0:00:31]} gxh5 {[%emt 0:00:30]} 34. Rxg8 {[%emt 0:00:46]} Rxg8 {[%emt 0:00:07]} 35. Rxc4 {[%emt 0:00:29]} Be8 {[%emt 0:00:45]} 36. a4 {[%emt 0:00:47]} Na7 {[%emt 0:00:19]} 37. Rc7+ {[%emt 0:00:09]} Kb6 {[%emt 0:01:15]} 38. a5+ {[%emt 0:00:34]} Kxa5 {[%emt 0:00:25]} 39. Rxa7+ {[%emt 0:00:08]} Kb6 {[%emt 0:00:09]} 40. Rg7 {[%emt 0:00:09]} Rf8 {[%emt 0:00:38]} 41. Rg3 {[%emt 0:00:23]} Rf5 {[%emt 0:01:02]} 42. Bd4+ {[%emt 0:00:21]} Kc6 {[%emt 0:00:10]} 43. Ke1 {[%emt 0:01:16]} e5 {[%emt 0:00:43]} 44. Bc3 {[%emt 0:00:21]} e4 {[%emt 0:00:12]} 45. Bd1 {[%emt 0:00:11]} Kc5 {[%emt 0:00:32]} 46. Rg8 {[%emt 0:00:23]} Bf7 {[%emt 0:00:39]} 47. Rf8 {[%emt 0:00:43]} Kc4 {[%emt 0:00:28]} 48. Bxh5 {[%emt 0:00:52]} Rxh5 {[%emt 0:00:08]} 49. Rxf7 {[%emt 0:00:08]} Rxh4 {[%emt 0:00:08]} 50. Rc7+ {[%emt 0:00:02]} Kd3 {[%emt 0:00:15]} 51. Kf1 {[%emt 0:00:21]} Rh1+ {[%emt 0:00:39]} 52. Kg2 {[%emt 0:00:04]} Rb1 {[%emt 0:00:16]} 53. Rc5 {[%emt 0:00:14]} Ke2 {[%emt 0:00:52]} 54. Rxd5 {[%emt 0:01:07]} Rf1 {[%emt 0:00:15]} 55. Rd2+ {[%emt 0:00:08]} Ke1 {[%emt 0:00:32]} 56. Rc2+ {[%emt 0:00:55]} Kd1 {[%emt 0:00:21]} 57. Kxf1 {[%emt 0:00:15]} Kxc2 {[%emt 0:00:06]} 58. f4 {[%emt 0:00:14]} exf3 {[%emt 0:00:11]} 59. e4 {[%emt 0:00:06]} Kd3 {[%emt 0:00:28]} 60. e5 {[%emt 0:00:06]} f2 {[%emt 0:00:36]} 61. e6 {[%emt 0:00:03]} Kc2 {[%emt 0:00:21]} 62. e7 {[%emt 0:00:07]} Kd1 {[%emt 0:00:05]} 63. e8=Q {[%emt 0:00:15]} Kc2 {[%emt 0:00:06]} 64. Qa4+ {[%emt 0:00:08]} Kc1 {[%emt 0:00:07]} 65. Kxf2 {[%emt 0:00:13]} Kb1 {[%emt 0:00:12]} 66. Ke2 {[%emt 0:00:08]} Kc1 {[%emt 0:00:17]} 67. Qd1# {[%emt 0:00:07]} 1-0